bitfinex-derivatives/quotes_BTCF0:USTF0_20210109
["timestamp","ask_amount","ask_price","bid_price","bid_amount"]
[1610165089095,0.6607044,39971.0,39965.0,0.00022359]
[1610165089295,0.6607044,39971.0,39946.0,0.00022362]
[1610165089495,0.90328189,39969.0,39966.0,0.00022362]
[1610165089694,0.89178189,39969.0,39947.0,0.00022362]
[1610165089896,0.53646142,39968.0,39957.0,0.13632608]
[1610165090096,0.61186142,39968.0,39957.0,0.13632608]
[1610165090295,0.53637327,39967.0,39958.0,0.00022362]
[1610165090696,0.53650139,39965.0,39958.0,0.00022362]
[1610165090996,0.53643407,39964.0,39958.0,0.00022362]
[1610165091396,0.5363757,39965.0,39958.0,0.00022362]
[1610165091997,0.23259608,39959.0,39958.0,0.00022362]
[1610165092998,0.22039608,39959.0,39958.0,0.00022362]
[1610165096100,0.20849608,39959.0,39958.0,0.00022362]
[1610165099101,0.19659608,39959.0,39958.0,0.00022362]
[1610165099302,5.13039608,39959.0,39958.0,0.00022362]
[1610165099502,5.13070239,39959.0,39935.0,0.00022302]
[1610165099702,1.69690239,39959.0,39935.0,0.00022302]
[1610165099903,3.1808,39938.0,39924.0,0.01181207]
[1610165100102,0.23672608,39936.0,39924.0,0.01181207]
[1610165100302,1.5,39935.0,39906.0,0.04260979]
[1610165100504,2.8867,39925.0,39906.0,0.04260979]
[1610165100703,2.98645,39925.0,39890.0,3.9342]
[1610165100904,2.98645,39925.0,39907.0,0.0120439]
[1610165101101,2.98645,39925.0,39891.0,0.00022319]
[1610165101303,2.98645,39925.0,39908.0,0.00022319]
[1610165101502,0.09975,39925.0,39908.0,0.00022319]
[1610165101702,0.09975,39925.0,39895.0,4.1443]
[1610165101902,0.59615,39925.0,39895.0,4.1443]
[1610165102102,0.09104522,39925.0,39912.0,0.13632608]
[1610165102302,3.8948,39913.0,39912.0,0.13632608]
[1610165102502,3.97881,39913.0,39912.0,0.13632608]
[1610165103702,3.97881,39913.0,39883.0,3.6259]
[1610165103902,0.08401,39913.0,39863.0,0.5]
[1610165104102,4.0084,39912.0,39909.0,0.13632608]
[1610165104303,0.08401,39913.0,39909.0,0.13632608]
[1610165104504,3.0072,39912.0,39909.0,0.13632608]
[1610165104904,0.08401,39913.0,39870.0,0.10543]
[1610165105103,3.4461,39906.0,39870.0,0.10543]
[1610165105302,3.4342,39906.0,39871.0,0.01204949]
[1610165105503,3.4342,39906.0,39871.0,0.01182626]
[1610165105702,3.4342,39906.0,39871.0,0.01204948]
[1610165106105,3.4342,39906.0,39902.0,0.13632608]
[1610165106507,0.19634,39905.0,39902.0,0.13632608]
[1610165106705,0.19634,39905.0,39862.0,0.07733]
[1610165107103,0.19634,39905.0,39863.0,0.01205321]
[1610165107304,3.7184,39890.0,39863.0,0.01205321]
[1610165107503,3.83914,39890.0,39863.0,0.01205321]
[1610165107704,0.12074,39890.0,39863.0,0.01205321]
[1610165107904,2.8968,39872.0,39863.0,0.01205321]
[1610165108104,2.8968,39872.0,39871.0,0.13632608]
[1610165108306,2.8852,39872.0,39871.0,0.13632608]
[1610165108506,2.8852,39872.0,39871.0,0.13654938]
[1610165109505,2.8852,39872.0,39871.0,0.13632608]
[1610165110105,0.22028608,39882.0,39871.0,0.13632608]
[1610165110505,0.08396,39882.0,39871.0,0.13632608]
[1610165111505,0.10864,39890.0,39871.0,0.13632608]
[1610165111706,0.2804,39912.0,39871.0,0.13632608]
[1610165112106,0.2804,39912.0,39911.0,0.13632608]
[1610165112306,0.08401,39913.0,39911.0,0.13632608]
[1610165112508,0.52624319,39928.0,39911.0,0.13632608]
[1610165112509,0.00307255,39928.0,39911.0,0.13632608]
[1610165112705,0.2827,39927.0,39911.0,0.13632608]
[1610165112906,0.3711,39927.0,39911.0,0.13632608]
[1610165114108,0.3711,39927.0,39918.0,0.13632608]
[1610165114507,0.3595,39927.0,39918.0,0.13632608]
[1610165115109,0.3595,39927.0,39894.0,4.0529]
[1610165115509,0.3595,39927.0,39880.0,0.08831]
[1610165115709,3.1025,39919.0,39880.0,0.08831]
[1610165115910,3.22691,39919.0,39880.0,0.08831]
[1610165116110,3.22691,39919.0,39910.0,0.13632608]
[1610165116311,0.12441,39919.0,39910.0,0.13632608]
[1610165117509,0.11291,39919.0,39910.0,0.13632608]
[1610165118113,0.11291,39919.0,39917.0,0.13632608]
[1610165118311,0.11291,39919.0,39892.0,4.0135]
[1610165120114,0.11291,39919.0,39908.0,0.13632608]
[1610165120515,0.10101,39919.0,39908.0,0.13632608]
[1610165120915,0.36256653,39927.0,39908.0,0.13632608]
[1610165121317,0.00306138,39926.0,39908.0,0.13632608]
[1610165121518,0.00336797,39926.0,39908.0,0.13632608]
[1610165121720,0.36256213,39927.0,39908.0,0.13632608]
[1610165121918,0.00030659,39925.0,39908.0,0.13632608]
[1610165122120,0.00030659,39925.0,39915.0,0.13632608]
[1610165122322,0.00030659,39926.0,39915.0,0.13632608]
[1610165122525,0.00030659,39924.0,39915.0,0.13632608]
[1610165122722,0.00030659,39925.0,39892.0,4.0135]
[1610165122921,0.00030659,39923.0,39892.0,4.0135]
[1610165123123,0.00030659,39923.0,39871.0,0.5]
[1610165123322,3.366,39911.0,39862.0,0.5]
[1610165123522,3.48623,39911.0,39859.0,0.5]
[1610165123922,3.46093,39911.0,39859.0,0.5]
[1610165124124,3.46093,39911.0,39899.0,0.13632608]
[1610165124322,0.00030664,39910.0,39899.0,0.13632608]
[1610165125023,0.00030664,39910.0,39878.0,3.7301]
[1610165126023,0.00030664,39910.0,39904.0,0.13632608]
[1610165126224,0.03097122,39910.0,39904.0,0.13632608]
[1610165127223,0.03047122,39910.0,39904.0,0.13632608]
[1610165128225,0.13632608,39905.0,39904.0,0.13632608]
[1610165128626,0.16729852,39905.0,39904.0,0.13632608]
[1610165128826,0.16729852,39905.0,39878.0,3.7301]
[1610165129228,0.16729852,39905.0,39853.0,0.60435]
[1610165129426,0.03097495,39904.0,39853.0,0.10435]
[1610165129626,3.2592,39900.0,39854.0,0.00022337]
[1610165129826,3.34457,39900.0,39854.0,0.00022337]
[1610165130025,0.08537,39900.0,39899.0,0.13632608]
[1610165130226,0.07387,39900.0,39899.0,0.13632608]
[1610165130425,0.07417669,39900.0,39899.0,0.13632608]
[1610165131126,0.1048447,39900.0,39899.0,0.13632608]
[1610165131927,0.07387,39900.0,39899.0,0.13632608]
[1610165133428,0.06197,39900.0,39899.0,0.13632608]
[1610165135029,0.13632608,39909.0,39899.0,0.13632608]
[1610165135229,0.12023,39911.0,39899.0,0.13632608]
[1610165135428,0.03096957,39908.0,39899.0,0.13632608]
[1610165135629,0.08863,39908.0,39899.0,0.13632608]
[1610165136029,0.03096837,39907.0,39899.0,0.13632608]
[1610165136229,0.08863,39908.0,39906.0,0.13632608]
[1610165136431,0.07663,39908.0,39906.0,0.13632608]
[1610165138434,0.07663,39908.0,39906.0,0.61132608]
[1610165139635,0.06443,39908.0,39906.0,0.61132608]
[1610165140234,0.06443,39908.0,39907.0,0.5]
[1610165140634,0.0884,39927.0,39907.0,0.50022314]
[1610165141036,0.1569,39946.0,39908.0,3.6993]
[1610165141234,0.2756,39945.0,39908.0,3.69952314]
[1610165141436,0.3065455,39945.0,39909.0,0.00022314]
[1610165141835,0.13221767,39944.0,39909.0,0.00022314]
[1610165142235,0.0306427,39943.0,39909.0,0.00022314]
[1610165142434,0.03094913,39943.0,39936.0,0.13632608]
[1610165142834,0.01904913,39943.0,39936.0,0.13632608]
[1610165143235,0.00030643,39943.0,39918.0,3.0746]
[1610165143434,0.00030643,39943.0,39897.0,6.81426]
[1610165143435,0.00338763,39943.0,39897.0,0.11096]
[1610165143635,0.00338763,39943.0,39897.0,4.04056]
[1610165143835,0.00307877,39940.0,39898.0,0.00022423]
[1610165144036,0.00307762,39938.0,39898.0,0.00022423]
[1610165144436,0.00307726,39934.0,39919.0,0.13632608]
[1610165144638,0.09984726,39934.0,39919.0,0.13632608]
[1610165144836,0.00030655,39933.0,39919.0,0.13632608]
[1610165145038,0.00307581,39932.0,39919.0,0.13632608]
[1610165145438,0.00030655,39931.0,39919.0,0.13632608]
[1610165145838,0.5280997,39934.0,39919.0,0.13632608]
[1610165146237,0.00030655,39933.0,39919.0,0.13632608]
[1610165146437,0.13632608,39920.0,39919.0,0.13632608]
[1610165146837,0.24683608,39920.0,39878.0,0.12795]
[1610165147038,0.1569,39919.0,39882.0,3.8064]
[1610165147241,0.15720657,39919.0,39888.0,0.00022429]
[1610165147437,0.4517,39919.0,39888.0,0.00022429]
[1610165147639,0.4517,39919.0,39883.0,0.00022429]
[1610165147837,0.4517,39919.0,39889.0,0.00022429]
[1610165147838,0.1569,39919.0,39889.0,0.00022429]
[1610165148037,0.1569,39919.0,39884.0,0.00022429]
[1610165148238,0.2791,39918.0,39890.0,0.00022429]
[1610165148437,0.2791,39918.0,39917.0,0.13632608]
[1610165148838,0.1569,39919.0,39917.0,0.13632608]
[1610165149038,0.1449,39919.0,39917.0,0.13632608]
[1610165149238,0.11051,39920.0,39917.0,0.13632608]
[1610165151944,0.13632608,39924.0,39917.0,0.13632608]
[1610165152144,0.12402608,39924.0,39917.0,0.13632608]
[1610165152544,0.12402608,39924.0,39923.0,0.13632608]
[1610165153949,0.44099058,39928.0,39923.0,0.13632608]
[1610165154449,0.13632608,39924.0,39923.0,0.13632608]
[1610165154648,0.22400608,39924.0,39923.0,0.13632608]
[1610165155252,0.21180608,39924.0,39923.0,0.13632608]
[1610165158457,0.19950608,39924.0,39923.0,0.13632608]
[1610165159558,0.64273432,39924.0,39923.0,0.13632608]
[1610165159960,1.54132544,39924.0,39923.0,0.13632608]
[1610165160358,0.64273432,39924.0,39923.0,0.13632608]
[1610165160557,0.64273432,39924.0,39919.0,0.13632608]
[1610165161059,1.17316952,39924.0,39919.0,0.13632608]
[1610165161260,0.44205388,39922.0,39919.0,0.13632608]
[1610165161460,0.44185665,39921.0,39919.0,0.13632608]
[1610165162061,0.42875665,39921.0,39919.0,0.13632608]
[1610165162262,0.42875665,39921.0,39878.0,0.12795]
[1610165162263,3.8248,39920.0,39891.0,3.2816]
[1610165162663,0.13632608,39909.0,39898.0,0.13632608]
[1610165162862,0.22349608,39909.0,39898.0,0.13632608]
[1610165163062,0.22349608,39909.0,39899.0,0.0002206]
[1610165164564,0.13632608,39900.0,39899.0,0.0002206]
[1610165164764,0.25574608,39900.0,39899.0,0.0002206]
[1610165164967,0.11942,39900.0,39899.0,0.0002206]
[1610165165165,0.10742,39900.0,39899.0,0.0002206]
[1610165166165,0.10742,39900.0,39899.0,0.01111873]
[1610165166568,0.10742,39900.0,39899.0,0.0002206]
[1610165166768,0.10742,39900.0,39899.0,0.01111833]
[1610165168170,0.09552,39900.0,39899.0,0.01111833]
[1610165169973,0.08717,39909.0,39899.0,0.01111833]
[1610165170374,0.52953749,39923.0,39899.0,0.01111833]
[1610165170574,0.22400608,39924.0,39922.0,0.13632608]
[1610165170973,0.89721949,39923.0,39922.0,0.13632608]
[1610165171374,0.88531949,39923.0,39922.0,0.13632608]
[1610165171575,0.88531949,39923.0,39922.0,0.13654664]
[1610165172579,0.88531949,39923.0,39922.0,0.13632608]
[1610165172877,1.53244805,39923.0,39922.0,0.13632608]
[1610165173076,1.53275463,39923.0,39922.0,0.13654665]
[1610165173778,0.88562607,39923.0,39922.0,0.13654665]
[1610165174378,0.87382607,39923.0,39922.0,0.13654665]
[1610165175378,0.87382607,39923.0,39922.0,0.00022057]
[1610165175579,0.34411928,39923.0,39922.0,0.00022057]
[1610165175780,0.87343764,39923.0,39899.0,0.04036992]
[1610165175979,0.87343764,39923.0,39922.0,0.00022057]
[1610165176178,0.87091807,39924.0,39900.0,0.00022057]
[1610165176478,0.89709082,39923.0,39899.0,0.04036992]
[1610165176678,0.89709082,39923.0,39916.0,0.13632608]
[1610165176879,0.52896897,39920.0,39916.0,0.13632608]
[1610165177079,0.52896897,39920.0,39917.0,0.00022057]
[1610165177284,0.00030658,39919.0,39917.0,0.00022057]
[1610165177481,0.51737555,39920.0,39917.0,0.00022057]
[1610165178583,0.13632608,39918.0,39917.0,0.00022057]
[1610165180286,1.88310694,39918.0,39879.0,0.01113023]
[1610165180485,3.5741,39908.0,39895.0,0.01091015]
[1610165180685,3.5741,39908.0,39901.0,0.13632608]
[1610165180884,3.69539,39908.0,39901.0,0.13632608]
[1610165181286,3.69539,39908.0,39902.0,0.00022066]
[1610165181686,3.69539,39908.0,39870.0,0.01113182]
[1610165181886,0.36765191,39907.0,39870.0,0.01113182]
[1610165182087,3.6774,39896.0,39870.0,0.01113182]
[1610165182287,1.2860046,39907.0,39870.0,0.01113182]
[1610165182486,0.1118,39896.0,39866.0,0.01113317]
[1610165182687,0.1118,39896.0,39893.0,0.13632608]
[1610165183086,0.1118,39896.0,39894.0,0.00022069]
[1610165183487,0.1002,39896.0,39894.0,0.00022069]
[1610165184589,0.13632608,39895.0,39894.0,0.00022069]
[1610165184988,0.13632608,39895.0,39854.0,0.02927787]
[1610165185191,4.0976,39888.0,39854.0,0.04019198]
[1610165185391,4.19871,39888.0,39852.0,0.011135]
[1610165185990,0.284,39887.0,39852.0,0.011135]
[1610165186590,0.2721,39887.0,39886.0,0.13632608]
[1610165186794,0.2721,39887.0,39852.0,0.011135]
[1610165186991,0.2721,39887.0,39886.0,0.00022071]
[1610165187291,0.2721,39887.0,39853.0,0.01113626]
[1610165187491,4.0652,39874.0,39853.0,0.01113626]
[1610165187692,4.18329,39874.0,39852.0,0.01091626]
[1610165187893,0.11809,39874.0,39854.0,0.01113764]
[1610165188095,0.11809,39874.0,39853.0,0.01113817]
[1610165188493,0.11809,39874.0,39855.0,0.01113723]
[1610165188692,0.11809,39874.0,39873.0,0.13632608]
[1610165189095,0.11809,39874.0,39873.0,0.13654681]
[1610165189494,0.10659,39874.0,39873.0,0.55174681]
[1610165190094,0.10659,39874.0,39873.0,1.05174681]
[1610165190294,0.10659,39874.0,39873.0,1.06265876]
[1610165190498,0.10659,39874.0,39873.0,0.56265876]
[1610165192496,0.1002,39896.0,39873.0,0.56265876]
[1610165192697,0.43927536,39906.0,39895.0,0.13632608]
[1610165193100,0.43924438,39907.0,39896.0,0.00022066]
[1610165193898,0.13632608,39910.0,39896.0,0.00022066]
[1610165193899,0.56041671,39908.0,39896.0,0.00022066]
[1610165194098,0.43898085,39907.0,39896.0,0.00022066]
[1610165194698,0.43898085,39907.0,39906.0,0.13632608]
[1610165195098,0.12129,39908.0,39906.0,0.13632608]
[1610165195099,0.56052836,39908.0,39906.0,0.13632608]
[1610165195299,0.12129,39908.0,39906.0,0.13632608]
[1610165195700,0.42727976,39909.0,39906.0,0.13632608]
[1610165196201,0.13632608,39910.0,39906.0,0.13632608]
[1610165197002,3.8798,39915.0,39906.0,0.13632608]
[1610165197605,0.0147993,39912.0,39906.0,0.13632608]
[1610165197805,0.1397393,39912.0,39906.0,0.13632608]
[1610165198605,0.1397393,39912.0,39911.0,0.13632608]
[1610165199005,0.11264,39912.0,39911.0,0.13632608]
[1610165199806,0.11264,39912.0,39911.0,0.13654667]
[1610165201006,0.11264,39912.0,39911.0,0.13632608]
[1610165201406,0.11264,39912.0,39911.0,0.13654666]
[1610165201607,0.11264,39912.0,39911.0,0.13632608]
[1610165202107,0.10114,39912.0,39911.0,0.13632608]
[1610165202508,0.10114,39912.0,39888.0,2.9079]
[1610165202509,0.1569,39911.0,39888.0,2.9079]
[1610165202708,0.1569,39911.0,39902.0,0.13632608]
[1610165202909,0.01482211,39910.0,39902.0,0.13632608]
[1610165203310,0.01481519,39908.0,39902.0,0.13632608]
[1610165203909,0.01481519,39908.0,39903.0,0.00022064]
[1610165204109,0.17173227,39911.0,39903.0,0.00022064]
[1610165204708,0.17173227,39911.0,39910.0,0.13632608]
[1610165204911,0.1569,39911.0,39910.0,0.13632608]
[1610165205108,0.145,39911.0,39910.0,0.13632608]
[1610165205611,0.15983471,39911.0,39910.0,0.13632608]
[1610165205812,0.01483471,39911.0,39910.0,0.13632608]
[1610165206010,0.76618896,39912.0,39910.0,0.13632608]
[1610165206808,0.89622438,39911.0,39910.0,0.13632608]
[1610165207710,0.23746608,39912.0,39910.0,0.13632608]
[1610165207711,0.76608965,39912.0,39910.0,0.13632608]
[1610165208110,0.75418965,39912.0,39910.0,0.13632608]
[1610165208711,0.22556608,39912.0,39910.0,0.13632608]
[1610165209814,0.75356413,39912.0,39910.0,0.13632608]
[1610165210314,0.89471518,39911.0,39910.0,0.13632608]
[1610165210817,0.89471518,39911.0,39888.0,2.9079]
[1610165211213,0.89471518,39911.0,39889.0,0.00022051]
[1610165211414,0.88271518,39911.0,39889.0,0.00022051]
[1610165211814,0.00743075,39905.0,39889.0,0.00022051]
[1610165212314,0.00742616,39904.0,39889.0,0.00022051]
[1610165212515,0.11044616,39904.0,39889.0,0.00022051]
[1610165212715,0.11044616,39904.0,39903.0,0.13632608]
[1610165212716,0.24677224,39904.0,39903.0,0.13632608]
[1610165213517,0.25401196,39904.0,39903.0,0.13632608]
[1610165214118,0.24675476,39904.0,39903.0,0.13632608]
[1610165214318,0.23525476,39904.0,39903.0,0.13632608]
[1610165214519,0.24252863,39904.0,39861.0,0.5]
[1610165214719,0.13632608,39893.0,39890.0,0.13632608]
[1610165214920,0.25128608,39893.0,39890.0,0.13632608]
[1610165215319,0.25128608,39893.0,39891.0,0.00022066]
[1610165215719,0.25128608,39893.0,39890.0,0.13632608]
[1610165216520,0.00738114,39892.0,39890.0,0.13632608]
[1610165216920,0.01461071,39891.0,39890.0,0.13632608]
[1610165217120,0.01461071,39891.0,39842.0,0.1242]
[1610165217320,0.00301071,39891.0,39863.0,2.9176]
[1610165217921,0.00737374,39890.0,39864.0,0.01114019]
[1610165218320,0.00737285,39889.0,39864.0,0.01114019]
[1610165218824,0.13632608,39887.0,39885.0,0.13632608]
[1610165219223,0.00737611,39890.0,39885.0,0.13632608]
[1610165219422,0.00737611,39890.0,39886.0,0.00022071]
[1610165219622,0.12234029,39893.0,39886.0,0.00022071]
[1610165220025,0.00738474,39895.0,39886.0,0.00022071]
[1610165220423,0.63284406,39901.0,39886.0,0.00022071]
[1610165220624,0.36922,39904.0,39886.0,0.00022071]
[1610165220824,0.2777,39904.0,39903.0,0.13632608]
[1610165221826,0.2777,39904.0,39903.0,0.13654669]
[1610165223526,0.2657,39904.0,39903.0,0.13654669]
[1610165225929,0.35904,39904.0,39903.0,0.13654669]
[1610165226631,0.34684,39904.0,39903.0,0.13654669]
[1610165229833,0.33494,39904.0,39903.0,0.13654669]
[1610165232936,0.32294,39904.0,39903.0,0.13654669]
[1610165236038,0.29834,39904.0,39903.0,0.13654669]
[1610165239343,0.29804,39904.0,39903.0,0.13654669]
[1610165242447,0.28644,39904.0,39903.0,0.13654669]
[1610165245858,0.27344,39904.0,39903.0,0.13654669]
[1610165247058,0.27344,39904.0,39903.0,0.14745432]
[1610165248858,0.26154,39904.0,39903.0,0.14745432]
[1610165251961,0.24954,39904.0,39903.0,0.14745432]
[1610165255267,0.23724,39904.0,39903.0,0.14745432]
[1610165258671,0.22384,39904.0,39903.0,0.14745432]
[1610165258872,0.21034,39904.0,39903.0,0.14745432]
[1610165261774,3.61614,39904.0,39903.0,0.14745432]
[1610165261974,3.61614,39904.0,39903.0,0.01112824]
[1610165262175,3.61614,39904.0,39903.0,0.00022061]
[1610165262575,3.61534,39904.0,39874.0,3.2466]
[1610165262776,4.05133894,39904.0,39874.0,3.2466]
[1610165262973,4.05133894,39904.0,39890.0,0.13632608]
[1610165263374,0.43545477,39899.0,39891.0,0.01113575]
[1610165263574,0.36800154,39903.0,39891.0,0.01113575]
[1610165263575,0.43530118,39898.0,39891.0,0.01113575]
[1610165264174,0.43530118,39898.0,39891.0,0.00022067]
[1610165264575,0.63837404,39903.0,39890.0,0.13632608]
[1610165264576,0.43524416,39899.0,39892.0,0.00022067]
[1610165264775,0.43529776,39901.0,39892.0,0.00022067]
[1610165264976,0.43529776,39901.0,39900.0,0.13632608]
[1610165265175,0.43534332,39903.0,39900.0,0.13632608]
[1610165265576,0.52214416,39903.0,39901.0,0.0002209]
[1610165265976,0.88981479,39903.0,39901.0,0.0002209]
[1610165266377,3.0988,39902.0,39901.0,0.0002209]
[1610165266577,3.0988,39902.0,39880.0,0.01119567]
[1610165266777,0.52214416,39903.0,39880.0,0.01119567]
[1610165266977,0.52214416,39903.0,39902.0,0.13632608]
[1610165267176,4.26574416,39903.0,39902.0,0.13632608]
[1610165267377,3.7436,39903.0,39902.0,0.13654698]
[1610165268677,3.7313,39903.0,39902.0,0.13654698]
[1610165269080,3.86762608,39903.0,39902.0,0.13654698]
[1610165271884,3.85572608,39903.0,39902.0,0.13654698]
[1610165275286,3.84282608,39903.0,39902.0,0.13654698]
[1610165278194,4.73020515,39903.0,39902.0,0.13654698]
[1610165278391,4.71830515,39903.0,39902.0,0.13654698]
[1610165279392,4.71830515,39903.0,39902.0,0.0002209]
[1610165279591,4.71830515,39903.0,39869.0,0.02937506]
[1610165279792,0.51972692,39900.0,39869.0,0.04042451]
[1610165279993,3.7004,39886.0,39859.0,0.01127103]
[1610165280394,3.81681,39886.0,39870.0,0.01127118]
[1610165280594,3.81681,39886.0,39860.0,0.01127135]
[1610165280797,3.81681,39886.0,39871.0,0.01127159]
[1610165280995,3.81681,39886.0,39885.0,0.13632608]
[1610165281398,3.80511,39886.0,39885.0,0.13654722]
[1610165281795,0.11641,39886.0,39885.0,0.13654722]
[1610165283799,0.58981,39886.0,39885.0,0.13654722]
[1610165284500,0.57781,39886.0,39885.0,0.13654722]
[1610165285100,0.71413608,39886.0,39885.0,0.13654722]
[1610165287602,0.70233608,39886.0,39885.0,0.13654722]
[1610165287801,0.56601,39886.0,39885.0,0.13654722]
[1610165288003,0.09261,39886.0,39885.0,0.13654722]
[1610165288201,0.51889297,39897.0,39885.0,0.13654722]
[1610165288401,0.51889297,39897.0,39885.0,0.14759631]
[1610165288602,0.51872877,39900.0,39885.0,0.14759631]
[1610165288803,0.51872877,39900.0,39886.0,0.01126985]
[1610165289003,0.72730982,39904.0,39886.0,0.01126985]
[1610165289004,0.09334,39904.0,39899.0,0.13632608]
[1610165289201,0.51917204,39905.0,39899.0,0.13632608]
[1610165289402,0.51963351,39908.0,39899.0,0.13632608]
[1610165289603,0.51963351,39908.0,39900.0,0.00022109]
[1610165289804,0.88725265,39909.0,39900.0,0.00022109]
[1610165290205,0.1569,39910.0,39900.0,0.00022109]
[1610165290605,0.1331,39910.0,39900.0,0.00022109]
[1610165290804,0.6093155,39912.0,39900.0,0.00022109]
[1610165291006,0.6093155,39912.0,39911.0,0.13632608]
[1610165291309,0.08924,39912.0,39911.0,0.13654714]
[1610165291806,0.51999314,39913.0,39911.0,0.13654714]
[1610165292111,0.51962667,39912.0,39911.0,0.13632608]
[1610165292708,0.51978447,39913.0,39911.0,0.13654714]
[1610165293208,0.51978447,39913.0,39912.0,0.00022106]
[1610165293910,1.07361055,39913.0,39909.0,0.13632608]
[1610165294109,1.52904025,39913.0,39909.0,0.13632608]
[1610165294308,1.52904025,39913.0,39910.0,0.00022106]
[1610165294509,0.367598,39912.0,39910.0,0.00022106]
[1610165295810,0.43230953,39911.0,39910.0,0.00022106]
[1610165296714,0.43233666,39912.0,39910.0,0.00022106]
[1610165296911,0.42083666,39912.0,39910.0,0.00022106]
[1610165297112,0.64205608,39913.0,39909.0,0.13632608]
[1610165297312,0.64205608,39913.0,39911.0,0.00022104]
[1610165297712,0.64205608,39913.0,39910.0,0.00022104]
[1610165297913,0.64205608,39913.0,39912.0,0.00022104]
[1610165298114,0.64205608,39913.0,39911.0,0.00022104]
[1610165298513,0.64205608,39913.0,39910.0,0.00022104]
[1610165298713,0.64205608,39913.0,39912.0,0.00022104]
[1610165298916,0.64205608,39913.0,39911.0,0.00022104]
[1610165299313,0.22415608,39913.0,39912.0,0.00022104]
[1610165299713,0.08783,39913.0,39910.0,0.00022104]
[1610165299920,0.1451,39915.0,39910.0,0.00022104]
[1610165300119,0.1451,39915.0,39912.0,0.00022104]
[1610165300318,0.1451,39915.0,39911.0,0.00022102]
[1610165300516,0.1451,39915.0,39914.0,2.9291]
[1610165301113,0.1451,39915.0,39914.0,2.929321]
[1610165301915,0.1451,39915.0,39914.0,3.06564708]
[1610165303115,0.1333,39915.0,39914.0,3.06564708]
[1610165306219,0.20363,39915.0,39914.0,3.06564708]
[1610165307120,0.20363,39915.0,39914.0,0.13654708]
[1610165309222,0.19183,39915.0,39914.0,0.13654708]
[1610165309824,0.19183,39915.0,39914.0,0.57324708]
[1610165312229,0.17993,39915.0,39914.0,0.57324708]
[1610165312430,0.17993,39915.0,39914.0,0.13654708]
[1610165313429,0.17993,39915.0,39914.0,0.13632608]
[1610165314532,0.17993,39915.0,39914.0,0.00022098]
[1610165314932,0.17993,39915.0,39904.0,0.00022098]
[1610165315334,0.16803,39915.0,39904.0,0.00022098]
[1610165316135,0.16803,39915.0,39914.0,0.13632608]
[1610165316635,0.16803,39915.0,39914.0,0.13654706]
[1610165318439,0.15613,39915.0,39914.0,0.13654706]
[1610165321543,0.14453,39915.0,39914.0,0.13654706]
[1610165322344,0.14453,39915.0,39914.0,4.08614706]
[1610165324346,0.14453,39915.0,39914.0,0.13654706]
[1610165324748,0.13243,39915.0,39914.0,0.13654706]
[1610165325147,0.13243,39915.0,39914.0,3.78334706]
[1610165327755,0.12053,39915.0,39914.0,3.78334706]
[1610165328247,0.12053,39915.0,39914.0,3.79440098]
[1610165329450,0.12053,39915.0,39914.0,3.78334706]
[1610165329648,0.12053,39915.0,39914.0,3.79440088]
[1610165330849,0.10873,39915.0,39914.0,3.79440088]
[1610165331049,0.10873,39915.0,39914.0,3.78334706]
[1610165333751,0.08223,39915.0,39914.0,3.79453012]
[1610165333950,0.07033,39915.0,39914.0,3.79453012]
[1610165334549,0.4353315,39931.0,39914.0,3.79453012]
[1610165334950,0.4353315,39931.0,39915.0,0.01140252]
[1610165335851,0.79586879,39933.0,39915.0,0.01140252]
[1610165335852,0.70921079,39933.0,39915.0,0.01140252]
[1610165336251,0.40982608,39933.0,39932.0,0.13632608]
[1610165336654,1.73541388,39933.0,39932.0,0.13632608]
[1610165336853,1.73572034,39933.0,39932.0,0.13654747]
[1610165337054,1.71202034,39933.0,39932.0,0.13654747]
[1610165339455,2.3506246,39933.0,39932.0,0.13654747]
[1610165340760,2.3485246,39933.0,39932.0,0.13654747]
[1610165341260,2.01013857,39933.0,39932.0,0.13654747]
[1610165341459,2.44581889,39933.0,39932.0,0.13654747]
[1610165343161,2.44581889,39933.0,39932.0,0.13632608]
[1610165344063,2.43281889,39933.0,39914.0,3.6468]
[1610165344263,2.43281889,39933.0,39925.0,0.13632608]
[1610165344264,3.02262541,39933.0,39925.0,0.13632608]
[1610165344565,2.65520985,39933.0,39925.0,0.13632608]
[1610165344966,3.02265024,39933.0,39925.0,0.13632608]
[1610165345167,1.92907725,39933.0,39925.0,0.13632608]
[1610165345566,3.02335412,39933.0,39925.0,0.13632608]
[1610165345968,0.63958344,39928.0,39926.0,0.00022142]
[1610165346366,0.13632608,39927.0,39926.0,0.00022142]
[1610165346567,0.1366326,39927.0,39926.0,0.00022142]
[1610165346767,0.1366326,39927.0,39922.0,0.00022142]
[1610165346967,0.1366326,39927.0,39921.0,0.13632608]
[1610165346968,2.09207914,39927.0,39921.0,0.13632608]
[1610165347267,1.59869822,39923.0,39922.0,0.00022143]
[1610165347567,1.72298822,39923.0,39922.0,0.00022143]
[1610165347767,1.72329474,39923.0,39922.0,0.00022143]
[1610165348170,2.09078576,39923.0,39922.0,0.00022143]
[1610165348369,2.22711184,39923.0,39919.0,0.00022143]
[1610165348572,2.22711184,39923.0,39922.0,0.00022143]
[1610165348972,0.36750066,39922.0,39920.0,0.00022145]
[1610165349171,0.36750066,39922.0,39918.0,3.2754]
[1610165349371,2.33474889,39921.0,39918.0,3.2754]
[1610165349772,0.36748093,39920.0,39919.0,0.00022144]
[1610165350172,0.96472773,39920.0,39919.0,0.00022144]
[1610165350371,0.96472773,39920.0,39919.0,3.95012608]
[1610165350772,0.96472773,39920.0,39919.0,3.9503475]
[1610165350974,0.36743831,39921.0,39919.0,3.9503475]
[1610165351374,1.33251386,39920.0,39919.0,3.9503475]
[1610165351575,1.33251386,39920.0,39919.0,3.95012608]
[1610165351775,1.33251386,39920.0,39919.0,3.95034751]
[1610165351974,0.96507405,39920.0,39919.0,3.95034751]
[1610165352375,1.3325391,39920.0,39919.0,3.95034751]
[1610165352776,1.60803194,39920.0,39919.0,3.95034751]
[1610165353380,1.96341905,39920.0,39919.0,3.95034751]
[1610165353578,1.96372557,39920.0,39919.0,3.95034751]
[1610165353981,0.62808904,39923.0,39919.0,3.95034751]
[1610165354178,0.00030652,39920.0,39919.0,3.95012608]
[1610165354378,1.16975685,39920.0,39919.0,3.95012608]
[1610165354577,1.17006337,39920.0,39919.0,3.95034752]
[1610165354779,0.00030652,39920.0,39919.0,3.95034752]
[1610165355180,1.53693782,39920.0,39919.0,3.95034752]
[1610165355681,1.5366313,39920.0,39919.0,3.95034752]
[1610165356285,1.53693783,39920.0,39919.0,3.95034752]
[1610165356484,1.16915029,39920.0,39919.0,3.95034752]
[1610165356682,1.15655029,39920.0,39919.0,3.95034752]
[1610165356882,1.52404686,39920.0,39919.0,3.95034752]